Cogmind - Beta 17 @@@ ROGUE MODE // 2026.07.08 @ 01:07:28 Player: shapeshifter Result: Destroyed by Superfortress with Cooled Nova Cannon Performance ------------- Evolutions (8) 4000 Regions Visited (15) 3000 Robots Destroyed (143) 715 Value Destroyed (8641) 8641 Prototype IDs (102) 2040 Alien Tech Used (3) 600 Bonus (26655) 26655 TOTAL SCORE: 45651 Bonus ------- Triggered High Security 500 High Alert Combat Kills 4231 Follower Combat Kills 2384 Prayed to X0-1V1 5000 Major X0-1V1 Interference 10000 Registered with UFD 300 Met Optimus in HQ 500 Used Core Reset Matrix 3000 Met Optimus at Protoforge 1000 Friendly Fire -260 Cogmind --------- Core Integrity 0/1800 Matter 271/800 Energy 18/100 System Corruption 9% Temperature Cool (13) Movement Flying (25) Location -2/Protoforge Parts ------- > --- POWER (3) -------- (None) > --- PROPULSION (8) --- Experimental Surge Thruster Experimental Surge Thruster > --- UTILITY (10) ----- Experimental Optical Array Experimental Armor Integrity Analyzer Experimental Cloaking Device (fused) Self-contained Transmogrifier Self-contained Transmogrifier > --- WEAPON (4) ------- Experimental Terror Saw > --- INVENTORY (5) ---- Faulty Experimental Surge Thruster Subatomic Replicator Tachyon Dispersion Ray Peak State ------------ > --- POWER ------------ Micro Antimatter Reactor Cooled Antimatter Reactor Quantum Reactor > --- PROPULSION ------- Thunder Leg Enhanced Flexi-carbon Leg Myomer Leg Myomer Leg Myomer Leg Experimental Flexi-carbon Leg Experimental Flexi-carbon Leg Enhanced Biometal Leg > --- UTILITY ---------- Experimental Optical Array Experimental Core Analyzer Experimental Core Analyzer Experimental Armor Integrity Analyzer Improved Weapon Cycler Experimental Cloaking Device Experimental Cloaking Device Self-contained Transmogrifier Self-contained Transmogrifier X0-1V1's Piety Tracker > --- WEAPON ----------- Cooled Nova Cannon Heavy Proton Missile Launcher Fusion Bomb Launcher Chaos Jack > --- INVENTORY -------- Subatomic Replicator Tachyon Dispersion Ray Z-bomb Delivery System [Rating: 219] Favorites ----------- Power Reinforced Fission Core Engine Reinforced Ion Engine Power Core Reinforced Fission Core Reactor Micro Antimatter Reactor Propulsion Armored Leg Treads Light Treads Leg Armored Leg Wheel Overtuned Huge Scrapsphere Hover Unit Improved Gyrokinetic Inverter Flight Unit Xenon Bombardment Thruster Utility Self-contained Transmogrifier Device Self-contained Transmogrifier Storage Large Storage Unit Processor Experimental Armor Integrity Analyzer Hackware Improved Hacking Suite Protection Improved Medium Armor Plating Weapon Ion Cannon Energy Gun Thermic Laser Energy Cannon Ion Cannon Ballistic Gun Assault Rifle Ballistic Cannon Compact Linear Accelerator Launcher Shock Bomb Launcher Special Weapon CPS Tube Impact Weapon Powered Hammer Slashing Weapon Power Sword Piercing Weapon Plasma Lance Special Melee Weapon Chaos Jack Build | -11 -10 -10 -9 -9 -6 -5 -4 -4 -4 -4 -3 -3 -2 -2 -2 ------- Run | Yrd Mat Sub Rec Scr Fac Fac Fac Was Fac Arm Res Tes Res Qua Frg Slots Evolved 16 | . . . . . 8 2 2 . . . 2 . 2 . . Power 1 | . . . . . . . 1 . . . . . . . . Propulsion 6 | . . . . . 2 1 1 . . . 1 . 1 . . Utility 8 | . . . . . 6 . . . . . 1 . 1 . . Weapon 1 | . . . . . . 1 . . . . . . . . . Parts Attached 203 | 7 1 19 . 11 5 3 16 11 12 15 8 13 11 14 57 Power 26 | 1 . 3 . 2 . . 1 1 . 7 . 1 1 2 7 Engine 6 | 1 . 3 . 1 . . . . . . . . . . 1 Core 3 | . . . . 1 . . 1 . . . . . . 1 . Reactor 17 | . . . . . . . . 1 . 7 . 1 1 1 6 Propulsion 54 | 2 . 3 . 4 1 . 6 5 2 . 6 3 3 5 14 Treads 16 | 2 . 3 . 2 . . . 3 1 . 4 . . . 1 Leg 12 | . . . . 1 1 . . 1 1 . . . . . 8 Wheel 3 | . . . . 1 . . . . . . . . . . 2 Hover 10 | . . . . . . . 3 1 . . 1 . 1 4 . Flight 13 | . . . . . . . 3 . . . 1 3 2 1 3 Utility 69 | 2 1 1 . 2 4 2 7 3 7 6 1 6 4 4 19 Device 33 | 1 . 1 . . 2 . 4 2 3 5 1 4 1 2 7 Storage 6 | 1 1 . . 2 . . . . 1 . . . . . 1 Processor 13 | . . . . . . 1 1 . 1 1 . 1 1 . 7 Hackware 6 | . . . . . . . 1 . . . . 1 2 2 . Protection 11 | . . . . . 2 1 1 1 2 . . . . . 4 Artifact . | . . . . . . . . . . . . . . . . Weapon 54 | 2 . 12 . 3 . 1 2 2 3 2 1 3 3 3 17 Energy Gun 11 | 1 . 2 . 2 . . . . . . . 1 1 . 4 Energy Cannon 11 | . . 3 . 1 . 1 . 1 2 . . 1 1 . 1 Ballistic Gun 11 | 1 . 3 . . . . 1 . . . . . . . 6 Ballistic Cannon 6 | . . 3 . . . . . . 1 1 1 . . . . Launcher 3 | . . . . . . . . 1 . . . 1 . . 1 Special Weapon 1 | . . . . . . . . . . 1 . . . . . Impact Weapon 1 | . . . . . . . . . . . . . 1 . . Slashing Weapon 6 | . . 1 . . . . 1 . . . . . . 2 2 Piercing Weapon 3 | . . . . . . . . . . . . . . 1 2 Special Melee Weapon 1 | . . . . . . . . . . . . . . . 1 Unidentified Prototypes 33 | . . 1 . . . . . 1 . . . 7 3 4 17 Parts Lost 96 | . . 6 . . 3 . 10 2 5 19 5 . 7 6 33 Power 15 | . . 1 . . 1 . 1 . 2 4 . . 1 . 5 Propulsion 34 | . . 1 . . 1 . 3 2 1 3 2 . 4 3 14 Utility 30 | . . . . . . . 5 . 2 8 3 . 1 2 9 Weapon 17 | . . 4 . . 1 . 1 . . 4 . . 1 1 5 Highest Loss Streak 18 | . . 2 . . 3 . 9 2 4 6 3 . 4 5 18 To Critical Strikes 2 | . . . . . 1 . . . . . . . . . 1 Average Backups 7 | 2 4 8 10 10 11 12 9 4 7 6 4 4 4 4 4 Power . | . 1 . . . . . . . . 1 1 . . . . Propulsion 1 | . . 1 2 1 . . . . 1 . . . . . . Utility 3 | . 2 4 6 6 6 7 5 . 2 1 . . . . . Weapon 1 | . 1 . . . . . . 1 1 1 1 2 3 3 2 Tool/Special . | . . . . . . . . . . . . . . . . Unused Backups 38 | 1 . 16 3 7 . . 6 1 . . . 1 . . 3 Power 3 | . . 2 . . . . . . . . . 1 . . . Propulsion 11 | 1 . 8 . . . . . . . . . . . . 2 Utility 16 | . . 2 3 7 . . 4 . . . . . . . . Weapon 4 | . . 4 . . . . . . . . . . . . . Tool/Special 4 | . . . . . . . 2 1 . . . . . . 1 Average Slot Usage (%) 81 | . 100 95 92 94 52 38 40 73 85 71 31 30 38 41 80 Engine 5 | . 14 9 19 2 4 . . 8 5 1 . . . . . Core 4 | . . 3 2 18 5 4 3 1 4 . . . . 1 . Reactor 2 | . . . . 2 . . . 1 5 8 . 1 2 . 6 Treads 9 | . 28 20 16 8 . . . 9 11 9 6 . . . . Leg 6 | . . . . 12 9 4 2 . 1 . . . . . 20 Flight 1 | . . . 5 1 . . 1 3 . . 1 8 8 8 1 Device 16 | . 14 11 10 12 9 10 13 14 26 25 17 9 11 17 29 Storage 7 | . 14 11 10 12 5 4 2 8 11 9 . . . . . Processor 1 | . . . . . 3 2 . . . 1 4 6 2 1 3 Protection 1 | . . . . . 5 4 3 5 4 2 . . . 1 1 Energy Gun 6 | . 14 7 1 19 9 4 . 1 1 3 . . 1 . 2 Energy Cannon 5 | . . 8 21 2 . . 1 2 8 8 . 2 . . . Ballistic Gun 2 | . 14 7 . . . . 1 . . . . . . . . Ballistic Cannon 1 | . . 2 2 . . . . . . . . . . . 2 Launcher 2 | . . 9 . . . . . . . . . . . . 2 Peak Build Rating 219 | 7 7 41 42 52 98 91 104 148 147 152 84 93 102 132 219 Average Rating 76 | 4 7 28 38 44 92 86 79 102 135 119 55 65 82 88 159 On Entrance 58 | . 7 7 41 33 44 86 85 54 133 114 30 22 83 68 132 Avg Prop Armor Cover (%) 7 | . . . 2 6 . . 7 2 1 8 26 6 11 2 9 Naked Turns . | . . . . . . . . . . . . . . . . Heaviest Build 110 | 14 29 64 66 65 62 56 62 77 104 110 13 30 25 30 110 Greatest Support 225 | 40 40 48 56 56 68 50 50 225 225 155 60 32 30 33 202 Greatest Overweight (x) 13 | . . 2 2 4 . 1 13 3 . 1 4 1 1 2 1 Average Overweight (x) . | . . . . 1 . . . . . . . . . . . Largest Inventory Capacity 15 | 8 15 15 15 15 15 15 15 5 10 10 5 5 5 5 5 Average Capacity 11 | 7 14 15 15 14 15 15 12 5 9 9 5 5 5 5 5 Most Carried 15 | 5 5 15 15 15 15 15 15 5 10 10 5 5 5 5 5 Average Carried 9 | 3 4 11 14 14 13 14 11 4 8 6 4 4 4 4 4 Final Capacity 15 | 8 15 15 15 15 15 15 5 5 10 5 5 5 5 5 5 Final Carried 15 | 4 4 14 15 15 14 15 3 4 7 5 5 5 5 4 3 Transmogrified Parts 170 | . . 18 6 24 2 1 7 15 10 6 3 3 4 10 61 Integrity Recovered 3616 | . . 287 99 447 4 7 42 710 436 214 2 35 19 85 1229 Class Distribution -------------------- 52% | Mutant 15% | Gunner 7% | Tank 5% | Scavenger-Mutant 5% | Bomber 3% | Scavenger-Gunner Dominant Class ---------------- Mutant | -10/Materials Gunner | -10/Subcaves Mutant | -9/Recycling Mutant | -9/Scraptown Skirmisher | -6/Factory Mutant | -5/Factory Mutant | -4/Factory Mutant | -4/Waste Mutant | -4/Factory Tank | -4/Armory Mutant | -3/Research Mutant | -3/Testing Hacker-Sprinter | -2/Research Mutant | -2/Quarantine Scavenger-Mutant | -2/Protoforge Resources | -11 -10 -10 -9 -9 -6 -5 -4 -4 -4 -4 -3 -3 -2 -2 -2 ----------- Run | Yrd Mat Sub Rec Scr Fac Fac Fac Was Fac Arm Res Tes Res Qua Frg Matter Collected 7411 | 281 . 1443 202 120 50 . 86 848 283 350 . 74 389 535 2750 Remotely 252 | . . . . . . . . . . 252 . . . . . Salvage Created 6393 | 114 . 1404 345 . 147 250 220 219 150 391 . . 120 228 2805 Parts 266 | 9 . 72 12 . 5 22 15 . 7 7 . . 6 15 96 Haulers Intercepted 1 | . . . . . . . . . . . . . . . 1 Recyclers Shooed 1 | . . . 1 . . . . . . . . . . . . Parts Field Recycled . | . . . . . . . . . . . . . . . . Retrieved Matter . | . . . . . . . . . . . . . . . . Parts Self-Destructed 54 | . . 54 . . . . . . . . . . . . . Prevented 11 | . . 11 . . . . . . . . . . . . . Parts Restored . | . . . . . . . . . . . . . . . . Kills | -11 -10 -10 -9 -9 -6 -5 -4 -4 -4 -4 -3 -3 -2 -2 -2 ------- Run | Yrd Mat Sub Rec Scr Fac Fac Fac Was Fac Arm Res Tes Res Qua Frg Combat Hostiles Destroyed 119 | . . 33 4 . 3 2 4 . 3 6 . . 5 2 57 Melee 3 | . . . . . . . 3 . . . . . . . . Guns 21 | . . 11 . . 3 . . . 2 1 . . 1 . 3 Cannons 24 | . . 10 4 . . . . . 1 3 . . . 2 4 AOE 62 | . . 11 . . . 2 . . . . . . 4 . 45 Classes Destroyed 22 | 2 . 4 1 . 1 2 . . 1 1 . . 1 2 7 Worker 4 | . . . . . . 4 . . . . . . . . . Builder 2 | . . . . . . 2 . . . . . . . . . Tunneler 3 | 2 . . . . . . 1 . . . . . . . . Hauler 1 | . . . . . . . . . . . . . . . 1 Recycler 3 | 1 . . 1 . . . 1 . . . . . . . . Carrier 1 | . . . . . . . . . . . . . . . 1 Mechanic 1 | . . . . . . . . . . . . . . . 1 Operator 1 | . . . . . . . . . . . . . . 1 . Turret 2 | . . 2 . . . . . . . . . . . . . Watcher 7 | . . . . . . . . . . . . . 1 1 5 Swarmer 23 | . . 8 . . . . 4 . 1 . . . 4 . 6 Saboteur 1 | . . . . . . . . . . . . . . . 1 Grunt 35 | . . 18 . . . . . . . 2 . . 1 . 14 Duelist 4 | . . . . . . . . . . 2 . . . . 2 Protector 2 | . . . . . . . . . . . . . . . 2 Sentry 7 | . . . 4 . 1 . . . . 1 . . . . 1 Hunter 16 | . . . . . 2 2 . . 1 1 . . . 1 9 Programmer 4 | . . . . . . . . . . . . . . 1 3 Heavy 1 | . . . . . . . . . 1 . . . . . . Hotshot 6 | . . . . . . . . . . . . . . . 6 Striker 1 | . . . . . . . . . . . . . . . 1 Executioner 12 | . . . . . . . . . . . . . . . 12 Subdweller 7 | . . 7 . . . . . . . . . . . . . Best Kill Streak 16 | 2 . 5 1 . 2 8 4 . 2 2 . . 4 1 16 Combat Bots Only 13 | . . 5 1 . 2 2 3 . 2 2 . . 4 1 13 Max Kills in Single Turn 5 | 1 . 4 1 . 1 4 1 . 1 1 . . 3 1 5 Gunslinging . | . . . . . . . . . . . . . . . . Exploded 4 | . . 4 . . . 1 . . . . . . 3 . 4 Melee 1 | . . . . . . . 1 . . . . . . . . Uniques/NPCs Destroyed . | . . . . . . . . . . . . . . . . Combat | -11 -10 -10 -9 -9 -6 -5 -4 -4 -4 -4 -3 -3 -2 -2 -2 -------- Run | Yrd Mat Sub Rec Scr Fac Fac Fac Was Fac Arm Res Tes Res Qua Frg Hostile Shots Fired 1471 | . . 139 10 . 75 25 204 . 105 137 62 10 142 79 483 Missed 553 | . . 50 3 . 22 6 63 . 29 26 25 6 73 50 200 Hits 918 | . . 89 7 . 53 19 141 . 76 111 37 4 69 29 283 Melee 31 | . . . . . . . . . . 19 . . . . 12 Projectile 887 | . . 89 7 . 53 19 141 . 76 92 37 4 69 29 271 AOE 8 | . . 5 . . 2 . 1 . . . . . . . . Critical Strikes 48 | . . 2 . . 5 . 2 . 4 9 2 1 4 3 16 Actively Blocked 12 | . . . . . . . . . . 7 2 . 2 1 . Part Disruptions 2 | . . . . . 1 . . . . . . . . . 1 Damage Taken 21175 | . . 1765 101 . 828 337 2502 286 1548 2925 819 93 1544 737 7690 Core 5238 | . . 188 . . 49 53 1340 . 57 223 317 22 635 384 1970 Absorbed by Shields 971 | . . . . . . . . . 147 309 . . 53 82 380 Redirected to Shielding 14 | . . . . . . . . . . . . . . 14 . Ignored by Resistances 1137 | . . 47 . . . . . . 297 . . . 66 . 727 Regen/Repaired (Parts) 248 | . . . . . . . . 187 61 . . . . . . Core Remaining (%) 84 | 100 . . . 77 95 96 . . . 59 . 79 . . . Volleys Fired 353 | 7 . 92 11 . 12 8 6 2 21 42 2 7 8 12 123 Largest 4 | 2 . 4 4 . 2 1 3 1 3 3 1 1 1 1 3 Hottest 251 | 60 . 228 228 . 150 90 200 20 251 251 54 54 90 50 190 Shots Fired 587 | 13 . 201 32 . 20 8 17 3 30 68 2 7 8 12 166 Gun 189 | 13 . 79 5 . 20 7 11 . 6 12 . . 5 . 31 Cannon 304 | . . 107 27 . . 1 6 1 24 56 2 7 . 6 67 Launcher 88 | . . 15 . . . . . 2 . . . . 3 . 68 Special 6 | . . . . . . . . . . . . . . 6 . Kinetic 170 | 7 . 63 5 . . . 6 . . 8 2 6 . . 73 Thermal 266 | 6 . 81 14 . 20 8 11 1 29 60 . . 5 6 25 Explosive 32 | . . 1 . . . . . 2 . . . . 3 . 26 Electromagnetic 113 | . . 56 13 . . . . . 1 . . 1 . . 42 Robot Hit Streak 15 | 6 . 15 9 . 8 4 9 12 15 15 . . 12 6 12 Robot Miss Streak 10 | 1 . 2 1 . 3 3 4 . 1 4 . . 2 1 10 Penetration Max . | . . . . . . . . . . . . . . . . Secondary Targets . | . . . . . . . . . . . . . . . . Shots Hit Robots 373 | 9 . 118 20 . 17 5 19 7 14 53 . . 7 12 92 Core Hits 288 | 4 . 49 6 . 14 24 11 3 5 22 1 . 6 5 138 Critical Kills 2 | . . . . . . . . . . 1 . . . . 1 Critical Parts Destroyed 2 | . . . . . . . . . . . . . . . 2 Critical Strikes 7 | . . 1 . . 1 . 1 . . 1 . . . . 3 Burn 1 | . . . . . 1 . . . . . . . . . . Meltdown 1 | . . . . . . . . . . 1 . . . . . Destroy 3 | . . . . . . . . . . . . . . . 3 Blast 1 | . . 1 . . . . . . . . . . . . . Sever 1 | . . . . . . . 1 . . . . . . . . Melee Attacks 66 | . . 4 . . . . 16 4 . . . . 17 13 12 Impact 17 | . . . . . . . . . . . . . 17 . . Slashing 38 | . . 4 . . . . 10 4 . . . . . 13 7 Piercing 11 | . . . . . . . 6 . . . . . . . 5 Sneak Attacks 3 | . . . . . . . 3 . . . . . . . . Combat Hostiles . | . . . . . . . . . . . . . . . . Follow-up Attacks 1 | . . . . . . . . . . . . . . . 1 Damage Inflicted 25370 | 125 . 3053 462 . 389 689 760 490 499 2020 56 . 1216 422 15189 Guns 2819 | 125 . 1000 70 . 389 108 178 . 106 233 . . 129 . 481 Cannons 5308 | . . 1342 385 . . . 141 45 380 1787 35 . 32 188 973 Explosions 16028 | . . 711 . . . 581 . 270 . . . . 948 . 13518 Melee 1142 | . . . . . . . 421 175 . . . . 107 234 205 Ramming 73 | . . . 7 . . . 20 . 13 . 21 . . . 12 Kinetic 1994 | 80 . 721 48 . . . 76 . . 254 35 . 32 . 748 Thermal 5844 | 45 . 1016 245 . 389 108 243 45 451 1766 . . 129 188 1219 Explosive 11445 | . . . . . . . . 270 . . . . 948 . 10227 Electromagnetic 4872 | . . 1316 162 . . 581 . . 35 . . . . . 2778 Impact 107 | . . . . . . . . . . . . . 107 . . Slashing 938 | . . . . . . . 331 175 . . . . . 234 198 Piercing 97 | . . . . . . . 90 . . . . . . . 7 Highest Corruption 24 | . . 13 . . . . 4 10 10 13 . 2 20 24 11 Average Corruption 9 | . . 7 . . . . 4 9 10 10 . 1 19 23 6 Corruption Purged 5 | . . . . . . . . . . . . . . . 5 Corruption Blocked . | . . . . . . . . . . . . . . . . Effects 170 | . . 10 . . . . 3 18 27 19 . . 17 25 51 Message Errors 35 | . . 1 . . . . . 2 9 7 . . 3 3 10 Matter Fused 39 | . . 2 . . . . 1 7 4 2 . . 3 6 14 Heat Flow Errors 18 | . . 1 . . . . . 3 5 . . . 1 2 6 Energy Discharges 16 | . . 2 . . . . . 2 2 2 . . 1 4 3 Parts Rejected 4 | . . . . . . . . . . . . . 2 1 1 Parts Fused 3 | . . . . . . . . . . 1 . . . 1 1 Data Loss (minor) 19 | . . 2 . . . . 2 3 2 2 . . 1 . 7 Data Loss (major) 8 | . . 1 . . . . . . 1 2 . . . 1 3 Misfires 5 | . . 1 . . . . . 1 1 2 . . . . . Alerts 7 | . . . . . . . . . 2 . . . . 3 2 Misdirections 11 | . . . . . . . . . . 1 . . 6 4 . Weapon Failures 5 | . . . . . . . . . 1 . . . . . 4 Overload Shots 3 | . . . . . . . . . . . . . . . 3 Overflow Damage 1097 | . . 19 . . . . 46 . 15 47 . . 252 75 643 Projectiles 126 | . . 18 . . . . . . 15 47 . . . 38 8 Explosions 858 | . . 1 . . . . . . . . . . 252 . 605 Melee 113 | . . . . . . . 46 . . . . . . 37 30 Knockbacks 15 | . . 3 . . . . . . . 7 . . 1 . 4 Impact . | . . . . . . . . . . . . . . . . Kinetic 15 | . . 3 . . . . . . . 7 . . 1 . 4 Secondary . | . . . . . . . . . . . . . . . . Self-Inflicted Damage 507 | . . 90 . . . . 9 . . . 9 . . . 399 Shots 14 | . . 5 . . . . . . . . . . . . 9 Rammed 9 | . . . 1 . . . 4 . 1 . 3 . . . . Targets Rammed 12 | . . . 2 . . . 4 . 1 . 3 . . . 2 Kicked 2 | . . . . . . . . . . . . . . . 2 Crushed 1 | . . . 1 . . . . . . . . . . . . Highest Temperature 532 | . . 350 532 1 390 117 429 257 242 476 . . 88 93 187 Average Temperature 120 | . . 102 134 1 184 57 156 119 58 154 . . 36 55 59 Received Heat Transfer 1503 | . . 291 36 . 147 . 81 . 261 94 120 . 249 . 224 Effects 24 | . . 1 3 . 3 . 3 . . 14 . . . . . Shutdowns 12 | . . . 1 . 1 . 1 . . 9 . . . . . Interference 4 | . . . . . 2 . 2 . . . . . . . . Matter Decay 4 | . . . 1 . . . . . . 3 . . . . . Short Circuit 3 | . . 1 1 . . . . . . 1 . . . . . Damage (minor) 1 | . . . . . . . . . . 1 . . . . . Siege Activations . | . . . . . . . . . . . . . . . . Martial Activations . | . . . . . . . . . . . . . . . . Shielding Activations . | . . . . . . . . . . . . . . . . Robots Disrupted 1 | . . 1 . . . . . . . . . . . . . Combat Hostiles 1 | . . 1 . . . . . . . . . . . . . Robots Corrupted 5 | . . 1 . . . . . . . . . . . . 4 Combat Hostiles 5 | . . 1 . . . . . . . . . . . . 4 Parts Fried 14 | . . 1 2 . . 4 . . . . . . . . 7 Impact Corruptions . | . . . . . . . . . . . . . . . . Robots Melted 2 | . . . . . . . . . . 2 . . . . . Combat Hostiles 2 | . . . . . . . . . . 2 . . . . . Parts Melted 11 | . . 2 1 . 1 . . . . 5 . . . 1 1 Heat Transferred 6513 | 100 . 1645 370 . 675 90 238 37 444 1611 . . 185 148 970 Parts Sabotaged . | . . . . . . . . . . . . . . . . Parts Stolen . | . . . . . . . . . . . . . . . . Parts Stripped 7 | . . . . . . . . . . . . . . . 7 Power Chain Reactions 7 | . . 1 . . . 1 . . . . . . . . 5 Alert | -11 -10 -10 -9 -9 -6 -5 -4 -4 -4 -4 -3 -3 -2 -2 -2 ------- Run | Yrd Mat Sub Rec Scr Fac Fac Fac Was Fac Arm Res Tes Res Qua Frg Maximum Alert Level 5 | . . . 1 . . 1 . . 3 2 1 . 2 5 5 Low Security (%) 38 | 100 100 . 34 . 100 90 100 100 58 . 20 100 62 . . Level 1 20 | . . . 65 . . 9 . . 23 75 79 . 33 30 . Level 2 2 | . . . . . . . . . 3 24 . . 3 17 . Level 3 19 | . . . . . . . . . 14 . . . . 2 55 Level 4 13 | . . . . . . . . . . . . . . 22 35 Level 5 3 | . . . . . . . . . . . . . . 10 8 High Security 1 | . . . . . . . . . . . . . . 16 . Max Security . | . . . . . . . . . . . . . . . . Peak Influence 2187 | 5 . . 320 . 30 260 112 147 934 428 297 165 419 2062 2187 Initial 1148 | . . . 319 . . 9 112 21 . 408 117 141 92 235 1148 Average 538 | 1 . . 223 . 4 26 61 23 275 340 226 128 188 1044 1141 Influence Increases 8822 | 15 . 924 262 . 70 275 296 154 1426 219 306 144 557 2121 2053 Destroy 0b10 Robot/C 3460 | . . 680 80 . 60 40 160 . 400 120 . 20 220 560 1120 Destroy 0b10 Robot/NC 165 | 15 . . 10 . . 30 10 . 20 . . . 5 30 45 Destroy Leader 476 | . . 10 . . 10 10 30 . 90 10 . . 52 92 172 Allied During Kill 715 | . . 24 . . . . 20 . 422 . . . 37 212 . Successful Hack 165 | . . . 4 . . . 6 . 7 . 27 . 51 30 40 Select Force Hacks 150 | . . . 150 . . . . . . . . . . . . Disable Machine 780 | . . . 15 . . 195 . . 75 30 . 90 . 210 165 Anti-Garrison Action 200 | . . . . . . . . . . . 200 . . . . Destroy Structure 1580 | . . . 3 . . . 10 154 196 14 4 4 87 807 301 Partial Spotted 150 | . . . . . . . 15 . . . . 30 30 45 30 Lose Combat Pursuer 795 | . . 210 . . . . 45 . 30 45 75 . 75 135 180 Miscellaneous 186 | . . . . . . . . . 186 . . . . . . Influence Decreases 6635 | 15 . 259 792 135 50 65 466 214 592 830 276 232 303 498 1908 Entered New Map 2444 | . . . 346 135 . 11 118 39 . 426 106 112 73 184 894 Time Decay 2847 | 15 . 129 446 . 30 34 254 115 352 214 120 100 140 214 684 Lost Part 870 | . . 10 . . 20 . 70 20 50 190 50 . 70 60 330 Lost Ally 474 | . . 120 . . . 20 24 40 190 . . 20 20 40 . Squads Dispatched 50 | . . . . . 1 2 3 . 6 7 3 3 6 11 8 Investigation 12 | . . . . . . 1 1 . . 2 2 . 1 2 3 Extermination 7 | . . . . . . . 1 . 2 1 . . 2 1 . Reinforcement 27 | . . . . . 1 1 1 . 3 4 1 3 3 5 5 Assault 1 | . . . . . . . . . 1 . . . . . . Garrison 3 | . . . . . . . . . . . . . . 3 . Intercept . | . . . . . . . . . . . . . . . . Searches Triggered . | . . . . . . . . . . . . . . . . Construction Impeded 6 | . . . . . 1 1 1 . 1 . 1 . 1 . . Haulers Reinforced . | . . . . . . . . . . . . . . . . Active Scanning Responses . | . . . . . . . . . . . . . . . . Cargo Convoy Interrupts . | . . . . . . . . . . . . . . . . Stealth | -11 -10 -10 -9 -9 -6 -5 -4 -4 -4 -4 -3 -3 -2 -2 -2 --------- Run | Yrd Mat Sub Rec Scr Fac Fac Fac Was Fac Arm Res Tes Res Qua Frg Distress Signals 35 | . . . . . . . 2 . 1 2 . 1 2 1 26 Communications Jammed . | . . . . . . . . . . . . . . . . Distress Signals . | . . . . . . . . . . . . . . . . Times Spotted 343 | . . 54 3 . 8 5 15 2 31 19 21 10 36 28 111 Peak Tracking Total 16 | . . 5 1 . 5 6 9 1 10 13 8 6 16 11 11 Tactical Retreats 27 | . . 6 . . . . 3 . 1 1 2 . 2 2 10 Traps | -11 -10 -10 -9 -9 -6 -5 -4 -4 -4 -4 -3 -3 -2 -2 -2 ------- Run | Yrd Mat Sub Rec Scr Fac Fac Fac Was Fac Arm Res Tes Res Qua Frg Traps Triggered 5 | . . 1 . . . . 1 . 1 . . . 1 1 . Indirectly . | . . . . . . . . . . . . . . . . Trap Hack Attempts . | . . . . . . . . . . . . . . . . Triggered . | . . . . . . . . . . . . . . . . Disarmed . | . . . . . . . . . . . . . . . . Reprogrammed . | . . . . . . . . . . . . . . . . Reused . | . . . . . . . . . . . . . . . . Traps Extracted . | . . . . . . . . . . . . . . . . Installed . | . . . . . . . . . . . . . . . . Triggered . | . . . . . . . . . . . . . . . . Machines | -11 -10 -10 -9 -9 -6 -5 -4 -4 -4 -4 -3 -3 -2 -2 -2 ---------- Run | Yrd Mat Sub Rec Scr Fac Fac Fac Was Fac Arm Res Tes Res Qua Frg Machines Disabled 57 | . . 3 1 . . 13 . . 6 2 . 6 . 14 12 Max in Single Turn 6 | . . 2 1 . . 6 . . 1 1 . 1 . 1 2 Garrison Access 1 | . . . . . . . . . . . 1 . . . . Machines Repaired . | . . . . . . . . . . . . . . . . Machines Dismantled . | . . . . . . . . . . . . . . . . Machines Sabotaged . | . . . . . . . . . . . . . . . . Overloaded Fab Kills . | . . . . . . . . . . . . . . . . Hacking | -11 -10 -10 -9 -9 -6 -5 -4 -4 -4 -4 -3 -3 -2 -2 -2 --------- Run | Yrd Mat Sub Rec Scr Fac Fac Fac Was Fac Arm Res Tes Res Qua Frg Machines Accessed 59 | . . 2 11 2 1 1 3 . 4 1 5 5 6 10 8 Terminals 34 | . . . 5 . . . 1 . 3 1 1 3 5 10 5 Fabricators 3 | . . . . . 1 . . . 1 . . 1 . . . Repair Stations 1 | . . . . . . . . . . . 1 . . . . Recycling Units 13 | . . . 6 . . 1 1 . . . 2 . . . 3 Scanalyzers 2 | . . . . . . . 1 . . . . . 1 . . Garrison Access 2 | . . . . . . . . . . . 1 1 . . . Total Hacks 144 | . . 5 32 21 4 2 6 . 7 2 7 5 15 16 22 Successful 74 | . . 5 18 21 1 2 4 . 2 . 5 1 3 5 7 Failed 70 | . . . 14 . 3 . 2 . 5 2 2 4 12 11 15 Catastrophic 16 | . . . 2 . . . . . 2 1 . 3 2 4 2 Database Lockouts . | . . . . . . . . . . . . . . . . Manual 55 | . 1 . 18 . . 1 4 . 3 . 3 3 6 5 11 Terminals 68 | . . . 13 . . . 3 . 5 2 1 3 12 16 13 Fabricators 7 | . . . . . 4 . . . 2 . . 1 . . . Repair Stations 1 | . . . . . . . . . . . 1 . . . . Recycling Units 35 | . . . 19 . . 2 1 . . . 4 . . . 9 Scanalyzers 5 | . . . . . . . 2 . . . . . 3 . . Garrison Access 2 | . . . . . . . . . . . 1 1 . . . Terminal Hacks 38 | . . 5 1 21 . . 1 . 1 . 1 . 1 3 4 Record 25 | . . 4 . 20 . . . . . . . . . 1 . Robot Analysis 1 | . . . . . . . . . . . . . . . 1 Level Access Points 1 | . . . . . . . . . . . . . 1 . . Branch Access Points 2 | . . . . . . . . . 1 . 1 . . . . Machine Index 1 | . . . . . . . . . . . . . . . 1 Terminal Index 1 | . . . . . . . . . . . . . . . 1 Recycling Unit Index 1 | . . . . . . . 1 . . . . . . . . Locate Traps 1 | . . . . . . . . . . . . . . 1 . Zone Layout 3 | . . . 1 . . . . . . . . . . 1 1 Proto ID Catalog 2 | . . 1 . 1 . . . . . . . . . . . Fabricator Hacks 2 | . . . . . 1 . . . 1 . . . . . . Build 2 | . . . . . 1 . . . 1 . . . . . . Repair Station Hacks . | . . . . . . . . . . . . . . . . Recycling Unit Hacks 7 | . . . 4 . . 1 . . . . 2 . . . . Report Inventory 2 | . . . . . . 1 . . . . 1 . . . . Retrieve Components 5 | . . . 4 . . . . . . . 1 . . . . Scanalyzer 3 | . . . . . . . 2 . . . . . 1 . . Retrieve Study 3 | . . . . . . . 2 . . . . . 1 . . Garrison Access Hacks . | . . . . . . . . . . . . . . . . Unauthorized Hacks 24 | . . . 13 . . 1 1 . . . 2 1 1 2 3 Terminals 12 | . . . 8 . . . . . . . . . 1 2 1 Track 1 | . . . . . . . . . . . . . . . 1 Botnet 4 | . . . 3 . . . . . . . . . 1 . . Skim 7 | . . . 5 . . . . . . . . . . 2 . Fabricators 1 | . . . . . . . . . . . . 1 . . . Liberate 1 | . . . . . . . . . . . . 1 . . . Repair Stations . | . . . . . . . . . . . . . . . . Recycling Units 10 | . . . 5 . . 1 1 . . . 1 . . . 2 Tunnel 5 | . . . 5 . . . . . . . . . . . . Fedlink 5 | . . . . . . 1 1 . . . 1 . . . 2 Scanalyzers . | . . . . . . . . . . . . . . . . Garrison Access 1 | . . . . . . . . . . . 1 . . . . Jam 1 | . . . . . . . . . . . 1 . . . . Data Cores Recovered 2 | . . . . . . . . . . 1 . . . 1 . Used 1 | . . . . . . . . . . . . . . 1 . Hacking Detections 44 | . . . 8 . 1 . 2 . 4 1 2 4 6 8 8 Full Trace Events 5 | . . . 1 . . . . . . 1 . . 1 1 1 Feedback Events 1 | . . . . . . . . . . . . . 1 . . Corruption 1 | . . . . . . . . . . . . . 1 . . Feedback Blocked . | . . . . . . . . . . . . . . . . Robot Schematics Acquired . | . . . . . . . . . . . . . . . . Robots Built . | . . . . . . . . . . . . . . . . Authchips . | . . . . . . . . . . . . . . . . Time . | . . . . . . . . . . . . . . . . Total Robot Build Rating . | . . . . . . . . . . . . . . . . Part Schematics Acquired . | . . . . . . . . . . . . . . . . Parts Built 2 | . . . . . . . . . 2 . . . . . . Authchips . | . . . . . . . . . . . . . . . . Time 223 | . . . . . 106 . . . 117 . . . . . . Total Part Build Rating 14 | . . . . . . . . . 14 . . . . . . Part Studies Acquired 3 | . . . . . . . 2 . . . . . 1 . . Parts Repaired . | . . . . . . . . . . . . . . . . Time . | . . . . . . . . . . . . . . . . Parts Recycled . | . . . . . . . . . . . . . . . . Recycled Matter . | . . . . . . . . . . . . . . . . Retrieved Matter . | . . . . . . . . . . . . . . . . Retrieved Components 6 | . . . 6 . . . . . . . . . . . . Parts Scanalyzed . | . . . . . . . . . . . . . . . . Part Schematics Acquired . | . . . . . . . . . . . . . . . . Parts Damaged . | . . . . . . . . . . . . . . . . Bothacking | -11 -10 -10 -9 -9 -6 -5 -4 -4 -4 -4 -3 -3 -2 -2 -2 ------------ Run | Yrd Mat Sub Rec Scr Fac Fac Fac Was Fac Arm Res Tes Res Qua Frg Used RIF Installer . | . . . . . . . . . . . . . . . . Robots Hacked 6 | . . . . . . . . . . . . . . 6 . Non-combat 1 | . . . . . . . . . . . . . . 1 . Combat . | . . . . . . . . . . . . . . . . Robot Hacks Applied 1 | . . . . . . . . . . . . . . 1 . check_alert 1 | . . . . . . . . . . . . . . 1 . Manual 5 | . . . . . . . . . . . . . . 5 . Relay Couplers Released . | . . . . . . . . . . . . . . . . Fabnet Peak Effective % . | . . . . . . . . . . . . . . . . Robots Rewired . | . . . . . . . . . . . . . . . . Allies Hacked . | . . . . . . . . . . . . . . . . Hacks Repelled . | . . . . . . . . . . . . . . . . Allies | -11 -10 -10 -9 -9 -6 -5 -4 -4 -4 -4 -3 -3 -2 -2 -2 -------- Run | Yrd Mat Sub Rec Scr Fac Fac Fac Was Fac Arm Res Tes Res Qua Frg Total Allies 42 | . . 8 . . . 3 3 20 . . . 2 2 4 . Largest Group 20 | . . 4 . . . 3 3 20 12 . . 2 1 4 . Highest-Rated Group 748 | . . 90 . . . 90 168 748 533 . . 112 148 268 . Highest-Rated Ally 148 | . . 90 . . . 30 56 50 50 . . 56 148 67 . Initial UFD Resources 66 | . . . . . 23 26 38 48 48 48 52 62 66 66 66 Total Orders . | . . . . . . . . . . . . . . . . Ally Attacks 385 | . . 51 . . . 2 17 125 99 . . 11 22 58 . Total Damage 18058 | . . 782 . . . 25 351 5011 3707 . . 374 1081 6727 . Kills 80 | . . 7 . . . . 4 11 22 . . 1 6 29 . Allies Corrupted 1 | . . . . . . . . . 1 . . . . . . Allies Melted 3 | . . . . . . . . . . . . . 1 . 2 X0-1V1 Amusement Gains 359 | . 19 24 8 27 2 7 37 31 19 33 3 5 6 85 53 Good Acts 148 | . . 62 1 . . 2 5 5 2 2 6 7 18 13 25 Bad Acts 85 | . . 40 2 . 2 . 2 1 7 6 3 1 11 . 10 Intel | -11 -10 -10 -9 -9 -6 -5 -4 -4 -4 -4 -3 -3 -2 -2 -2 ------- Run | Yrd Mat Sub Rec Scr Fac Fac Fac Was Fac Arm Res Tes Res Qua Frg Active Infowar (turns) 4975 | 10 309 205 . . 161 164 287 562 825 452 250 199 126 176 1249 Optics 1067 | . . . . . . . . . . 150 250 199 126 176 166 Sensors 751 | . . . . . . . . . 628 123 . . . . . A.S.S. 533 | . . . . . 160 164 209 . . . . . . . . Structural 125 | . . . . . 1 . 34 90 . . . . . . . Seismic 524 | 10 309 205 . . . . . . . . . . . . . T.N.C. 4 | . . . . . . . . . 4 . . . . . . Cloaking 304 | . . . . . . . . . . . . . . . 304 Spoofing 1085 | . . . . . . . . . . 206 . . . . 879 Jamming 1203 | . . . . . . 38 177 538 342 . . . . . 108 ECM 56 | . . . . . . . . . 6 50 . . . . . Robot Analysis Total 1 | . . . . . . . . . . . . . . . 1 Derelict Logs Recovered 2 | . . 1 . 1 . . . . . . . . . . . Drone Launches . | . . . . . . . . . . . . . . . . Drone Recoveries . | . . . . . . . . . . . . . . . . Exploration | -11 -10 -10 -9 -9 -6 -5 -4 -4 -4 -4 -3 -3 -2 -2 -2 ------------- Run | Yrd Mat Sub Rec Scr Fac Fac Fac Was Fac Arm Res Tes Res Qua Frg Turns Passed 14445 | 116 309 3406 1107 2674 195 209 557 562 825 452 250 216 295 534 2738 Spaces Moved 8042 | 57 35 1417 448 1212 120 90 371 329 447 188 355 372 588 1030 983 Core 302 | 20 . . . . . . 54 4 . 3 155 35 . . 31 Treads 3147 | 37 35 1417 448 370 . . . 206 447 185 2 . . . . Legs 1870 | . . . . 842 120 90 184 . . . . . . . 634 Wheels 10 | . . . . . . . . . . . . . . . 10 Hover 247 | . . . . . . . 82 119 . . . . . 46 . Flight 2466 | . . . . . . . 51 . . . 198 337 588 984 308 Fastest Speed 7 | 50 160 152 160 110 90 90 35 55 155 100 45 29 25 27 7 Average Speed 130 | 121 160 210 223 216 103 100 112 127 158 163 60 38 31 36 82 Slowest Speed 700 | 160 160 360 320 450 105 180 700 240 170 170 250 114 117 175 123 Overloaded Moves 259 | . . . . . . . . . . . . 75 60 84 40 Propulsion Burnouts . | . . . . . . . . . . . . . . . . Robots Hopped 30 | . . . . . . . . . . . 6 6 6 10 2 Potential Cave-ins 2 | . . . . . . . . 2 . . . . . . . Cave-ins Triggered 1 | . . . . . . . . 1 . . . . . . . Time Travels 1 | . . . . . . . . . . . . . . . 1 Exploration Rate (%) 40 | 3 10 97 88 81 2 4 16 93 13 27 13 49 24 90 44 Regions Visited 15 Branch Regions 7 Pre-discovered Areas 14 | . . 1 8 4 . . 1 . . . . . . . . Known Exits Taken 8 | . . 1 . 1 1 1 . . 1 . 1 1 1 . . Unknown Exits Taken 5 | 1 1 . 1 . . . . . . 1 . . . 1 . Scrap Searched 10 | . . 2 . 8 . . . . . . . . . . . Spaces Dug 31 | . . . . . . . 1 . 9 . 2 1 11 5 2 Terrain Destroyed 422 | . . 16 3 . . . 8 115 13 8 2 1 34 6 216 Melee 18 | . . . . . . . 1 . . . . . 11 5 1 Projectile 56 | . . 2 3 . . . 7 . 13 8 2 1 . 1 19 AOE 348 | . . 14 . . . . . 115 . . . . 23 . 196 Terrain Rammed . | . . . . . . . . . . . . . . . . Walls Destroyed . | . . . . . . . . . . . . . . . . Machines Disabled . | . . . . . . . . . . . . . . . . Actions | -11 -10 -10 -9 -9 -6 -5 -4 -4 -4 -4 -3 -3 -2 -2 -2 --------- Run | Yrd Mat Sub Rec Scr Fac Fac Fac Was Fac Arm Res Tes Res Qua Frg Total 11341 | 91 288 1673 530 1273 172 201 471 468 534 276 380 430 647 1151 2756 Wait 2303 | 9 251 87 56 14 27 97 38 84 30 3 8 19 15 64 1501 Move 7967 | 56 34 1416 447 1211 119 89 371 327 446 187 342 359 575 1009 979 Hop 30 | . . . . . . . . . . . 6 6 6 10 2 Pick Up 139 | 11 1 24 5 15 7 2 4 8 9 12 . 5 . 6 30 Fast Attach 106 | 1 . . . 5 . . 10 7 8 3 8 11 12 12 29 Attach 131 | 6 . 19 . 2 5 2 7 11 7 19 2 5 1 11 34 Detach 44 | . . . . . 1 1 . 6 2 6 3 4 2 6 13 Swap 30 | . 1 6 . 5 . 1 1 . 2 . . 4 2 . 8 Drop 141 | 1 1 23 5 21 1 1 12 15 8 4 5 10 2 8 24 Fire 353 | 7 . 92 11 . 12 8 6 2 21 42 2 7 8 12 123 Melee 64 | . . 4 . . . . 15 4 . . . . 17 13 11 Ram 6 | . . . . . . . 4 . . . 2 . . . . Kick 2 | . . . . . . . . . . . . . . . 2 Crush 4 | . . . 2 . . . . . 1 . 1 . . . . Escape Stasis 8 | . . . . . . . . 1 . . . . 7 . . Rewire 9 | . . 2 4 . . . . 3 . . . . . . . Trap . | . . . . . . . . . . . . . . . . Miscellaneous 4 | . . . . . . . 3 . . . 1 . . . . Route ------- -11/Scrapyard -10/Materials -10/Subcaves (discovered 2 exits: *Mat / *Rec) -9/Recycling (discovered 2 exits: [*Fac] / *Scr) -9/Scraptown (discovered 2 exits: *Fac x2) -6/Factory (discovered 4 exits: *Fac x3 / Ext) -5/Factory (discovered 3 exits: *Fac / Upp x2) -4/Factory -4/Waste -4/Factory (discovered 5 exits: *Res x2 / Upp x2 / *Arm) -4/Armory -3/Research (discovered 2 exits: *Tes x2) -3/Testing -2/Research (discovered 5 exits: Acc x3 / *Qua x2) -2/Quarantine (discovered 3 exits: *Acc / [*Sec] / *Frg) -2/Protoforge (discovered 1 exit: Acc) History --------- Turn | Location | Event 5 | -11/Scrapyard | Discovered new exit (range 15) 117 | -11/Scrapyard | Entered Materials 304 | -10/Materials | Build established: Mutant 403 | -10/Materials | Discovered new exit (range 8) 426 | -10/Materials | Prayed at D.C.S.S. Altar Unit 426 | -10/Materials | Entered Subcaves 816 | -10/Subcaves | Melee accuracy permanently improved by X0-1V1 (+5%; -50 max core) 849 | -10/Subcaves | Weapon slot count permanently improved by X0-1V1 (+1) 895 | -10/Subcaves | Visited Clippyterm 900 | -10/Subcaves | Learned location of Extension (-6) 900 | -10/Subcaves | Learned Research machine intel 1073 | -10/Subcaves | Discovered new exit (range 4) 1180 | -10/Subcaves | Identified exit to Materials 1180 | -10/Subcaves | X0-1V1 revealed exit location to -8/Materials 1204 | -10/Subcaves | Core integrity permanently improved by X0-1V1 (+400) 1228 | -10/Subcaves | X0-1V1 activates XOMVISION 1256 | -10/Subcaves | Identified exit to Recycling 1256 | -10/Subcaves | X0-1V1 revealed exit location to -9/Recycling 1333 | -10/Subcaves | Build established: Gunner 1392 | -10/Subcaves | Forcibly received Sfc. Transmogifier from X0-1V1 1473 | -10/Subcaves | Learned Materials emergency access door positions 1506 | -10/Subcaves | Visited 4L-MR0's lab 1518 | -10/Subcaves | Found Sfc. Transmogrifier 1528 | -10/Subcaves | Found Arachnoskeleton 1589 | -10/Subcaves | Shifting Twisted Machinery released Sub. Laser 1672 | -10/Subcaves | X0-1V1 mutated your Propulsion slot to Weapon slot 1718 | -10/Subcaves | X0-1V1 whisked you away to safety 1727 | -10/Subcaves | X0-1V1 activates XOMVISION 1909 | -10/Subcaves | X0-1V1 sent you into danger 1916 | -10/Subcaves | X0-1V1 sent allied H-61 Shepherd (x1) 1936 | -10/Subcaves | Shifting Twisted Machinery released Sub. Beam Cannon 2527 | -10/Subcaves | X0-1V1 activates XOMVISION 2531 | -10/Subcaves | System corruption reached 10% 2537 | -10/Subcaves | X0-1V1 sent hostile G-34 Mercenary (x4) 2548 | -10/Subcaves | X0-1V1 mutated your Weapon slot to Propulsion slot 2561 | -10/Subcaves | X0-1V1 tapped a No Entrance sign 2666 | -10/Subcaves | Shifting Twisted Machinery released Sub. Monowheel 2678 | -10/Subcaves | X0-1V1 sent hostile G-34 Mercenary (x4) 2726 | -10/Subcaves | Build established: Bomber 2813 | -10/Subcaves | X0-1V1 sent hostile G-34 Mercenary (x4) 2904 | -10/Subcaves | X0-1V1 sent hostile S-10 Pest (x5) 3032 | -10/Subcaves | X0-1V1 activates XOMVISION 3056 | -10/Subcaves | X0-1V1 sent allied G-34 Mercenary (x3) 3302 | -10/Subcaves | X0-1V1 mutated your Weapon slot to Power slot 3379 | -10/Subcaves | X0-1V1 sent hostile G-34 Mercenary (x5) 3390 | -10/Subcaves | X0-1V1 sent allied G-34 Mercenary (x4) 3401 | -10/Subcaves | Weapon slot count temporarily expanded by X0-1V1 (+4) 3413 | -10/Subcaves | X0-1V1 rewrote G-34 Mercenary IFF filter 3460 | -10/Subcaves | X0-1V1 activates XOMVISION 3541 | -10/Subcaves | X0-1V1 rewrote G-34 Mercenary IFF filter 3713 | -10/Subcaves | Build established: Gunner 3762 | -10/Subcaves | X0-1V1 sent hostile G-34 Mercenary (x4) 3832 | -10/Subcaves | Entered Recycling 4227 | -9/Recycling | Discovered new exit (range 10) 4460 | -9/Recycling | Build established: Mutant 4499 | -9/Recycling | X0-1V1 activates XOMVISION 4662 | -9/Recycling | Learned location of Zion (-6) 4696 | -9/Recycling | Learned Storage garrison access intel 4740 | -9/Recycling | Learned Materials stockpile data 4747 | -9/Recycling | Learned Storage trap positions 4755 | -9/Recycling | Learned 2 Materials zone layouts 4771 | -9/Recycling | Learned 2 Storage zone layouts 4795 | -9/Recycling | Learned Materials emergency access door positions 4879 | -9/Recycling | Scanned before Scraplab entrance 4912 | -9/Recycling | Entered Scraplab 4932 | -9/Recycling | Discovered new exit (range 3) 4939 | -9/Recycling | Entered Scraptown 5021 | -9/Scraptown | Visited Junk Repository 5064 | -9/Scraptown | Heard Great Nut preacher, LISTEN AND RECITE! 5078 | -9/Scraptown | Visited Bundlers 5259 | -9/Scraptown | Visited Cyclists 5336 | -9/Scraptown | Scanned Subdweller tech in exchange for log data 5467 | -9/Scraptown | Discovered new exit (range 13) 5544 | -9/Scraptown | Visited Comm Corps 5572 | -9/Scraptown | Visited TADAMA 5606 | -9/Scraptown | Visited Fellowship of the Rings 5628 | -9/Scraptown | Visited UFD Registry 5628 | -9/Scraptown | Registered with UFD as "Roughlever" 6426 | -9/Scraptown | Visited Research Penetration Think Tank 6469 | -9/Scraptown | Visited Observation Area 6496 | -9/Scraptown | Visited Science Guys 6554 | -9/Scraptown | Visited Scrap Suit Storage 6580 | -9/Scraptown | Visited Infowarlord's Domain 6623 | -9/Scraptown | Visited Curators Association 6654 | -9/Scraptown | Visited Junk Repository 6685 | -9/Scraptown | Visited DA-N13 Charitable Foundation 6693 | -9/Scraptown | Found DCF Scrap (30 items) 6742 | -9/Scraptown | Visited Cartography Club 6947 | -9/Scraptown | Learned location of Recycling (-9) 6947 | -9/Scraptown | Learned 16 Materials zone layouts 6947 | -9/Scraptown | Learned 20 Proximity Caves zone layouts 6947 | -9/Scraptown | Learned 8 Upper Caves zone layouts 6947 | -9/Scraptown | Learned location of 1 exit from Research 6947 | -9/Scraptown | Learned location of Quarantine (-2) 6947 | -9/Scraptown | Learned 24 Proximity Caves zone layouts 6947 | -9/Scraptown | Learned 12 Factory zone layouts 6947 | -9/Scraptown | Learned 12 Lower Caves zone layouts 6947 | -9/Scraptown | Learned 20 Upper Caves zone layouts 6947 | -9/Scraptown | Learned location of 2 exits from Upper Caves 6947 | -9/Scraptown | Learned 4 Storage zone layouts 6947 | -9/Scraptown | Learned Factory emergency access door positions 6947 | -9/Scraptown | Learned 4 Hub_04(d) zone layouts 6947 | -9/Scraptown | Learned location of 3 exits from Upper Caves 6947 | -9/Scraptown | Identified exit to Factory 6972 | -9/Scraptown | Found Deep Structural Scanner 7066 | -9/Scraptown | Found Active Sensor Suite 7513 | -9/Scraptown | Met Optimus 7513 | -9/Scraptown | Accepted into 0bPrime 7613 | -9/Scraptown | Entered Factory 7613 | -6/Factory | Evolved 8 slots: Propulsion x2, Utility x6 7614 | -6/Factory | Identified exit to Factory 7615 | -6/Factory | Identified exit to Extension 7615 | -6/Factory | Attached Arachnoskeleton, gained temporary slots: Propulsion x3 7616 | -6/Factory | Discovered exit to Factory (range 8) 7618 | -6/Factory | X0-1V1 announced a LAN party 7637 | -6/Factory | X0-1V1 enhanced Transport squad support 7808 | -6/Factory | Entered another Factory area 7808 | -5/Factory | Evolved 2 slots: Propulsion x1, Weapon x1 7809 | -5/Factory | Identified exit to Upper Caves 7823 | -5/Factory | Lost 3 parts (1p1n1w) 7845 | -5/Factory | Loaded intel: 8 recycling unit locations 8002 | -5/Factory | Discovered new exit (range 1) 8002 | -5/Factory | X0-1V1 sent you to a vault 8015 | -5/Factory | Identified exit to Factory 8017 | -5/Factory | Entered another Factory area 8017 | -4/Factory | Accompanied by 2 allies 8017 | -4/Factory | Evolved 2 slots: Power x1, Propulsion x1 8024 | -4/Factory | Found Quantum Capacitor 8070 | -4/Factory | X0-1V1 activates XOMVISION 8214 | -4/Factory | Railgun reconfigured into Item Mimic 8329 | -4/Factory | Spotted B-86 Titan 8430 | -4/Factory | X0-1V1 enhanced Transport squad support 8433 | -4/Factory | Loaded intel: 8 recycling unit locations 8433 | -4/Factory | Learned location of Protoforge (-2) 8438 | -4/Factory | Core integrity fell below 50% 8468 | -4/Factory | Core integrity fell below 20% 8498 | -4/Factory | Lost 9 parts (1p3n5u) 8533 | -4/Factory | X0-1V1 sent you to a vault 8574 | -4/Factory | Sucked down chute 8574 | -4/Factory | Entered Waste 8575 | -4/Waste | Met a frightened Derelict 8577 | -4/Waste | Found Prototype Launcher 8578 | -4/Waste | Identified Tactical Quantum Warhead 8581 | -4/Waste | Spotted C-40 Crusher 8597 | -4/Waste | Crushed by falling debris 8598 | -4/Waste | System corruption reached 10% 8615 | -4/Waste | Warlord forces began an assault 8651 | -4/Waste | Core integrity restored by X0-1V1 (+315) 8658 | -4/Waste | Spotted C-40 Crusher 8658 | -4/Waste | Allies destroyed C-40 Crusher 8670 | -4/Waste | Spotted C-40 Crusher 8691 | -4/Waste | Spotted C-40 Crusher 8694 | -4/Waste | Allies destroyed C-40 Crusher 8711 | -4/Waste | Found Damper Plating 8725 | -4/Waste | Lost 7 allies 8767 | -4/Waste | Spotted C-40 Crusher 8770 | -4/Waste | Allies destroyed C-40 Crusher 8815 | -4/Waste | Spotted C-40 Crusher 8819 | -4/Waste | Allies destroyed C-40 Crusher 8980 | -4/Waste | Discovered new exit (range 15) 9136 | -4/Waste | Entered Factory 9136 | -4/Factory | Accompanied by 12 allies 9157 | -4/Factory | X0-1V1 mutated your Propulsion slot to Utility slot 9170 | -4/Factory | Identified exit to Upper Caves 9170 | -4/Factory | Identified exit to Armory 9175 | -4/Factory | X0-1V1 added 0b10 threat records associated with you (considerable) 9350 | -4/Factory | Fabricated Antimatter Reactor? 9387 | -4/Factory | Discovered new exit (range 9) 9622 | -4/Factory | Core integrity restored by X0-1V1 (+315) 9835 | -4/Factory | Discovered new exit (range 16) 9862 | -4/Factory | Lost 3 allies 9886 | -4/Factory | First assault squad dispatched 9933 | -4/Factory | Core integrity restored by X0-1V1 (+315) 9961 | -4/Factory | Entered Armory 9962 | -4/Armory | Met VL-GR5, who suggested a friendly competition 9982 | -4/Armory | Lost 6 allies 9985 | -4/Armory | Build established: Tank 9991 | -4/Armory | Lost 4 parts (2p1n1u) 10025 | -4/Armory | X0-1V1 announced a LAN party 10150 | -4/Armory | Lost the competition with VL-GR5 10263 | -4/Armory | VL-GR5 did not survive their latest romp through Armory 10290 | -4/Armory | Lost 6 parts (1p1n3u1w) 10342 | -4/Armory | Lost 6 parts (3p2u1w) 10365 | -4/Armory | Discovered new exit (range 3) 10413 | -4/Armory | Entered Research 10413 | -3/Research | Evolved 2 slots: Propulsion x1, Utility x1 10414 | -3/Research | Identified exit to Testing 10415 | -3/Research | Loaded intel: 125 machine locations 10440 | -3/Research | Lost 6 parts (2n2u2w) 10499 | -3/Research | Loaded intel: 5 recycling unit locations 10563 | -3/Research | X0-1V1 announced a LAN party 10590 | -3/Research | X0-1V1 foreshadows a heat wave 10629 | -3/Research | X0-1V1 whisked you away to safety 10651 | -3/Research | X0-1V1 activates XOMVISION 10656 | -3/Research | Lost 3 parts (2n1u) 10663 | -3/Research | Entered Testing 10679 | -3/Testing | X0-1V1 announced a LAN party 10697 | -3/Testing | Identified exit to Research 10697 | -3/Testing | X0-1V1 revealed exit location to -2/Research 10715 | -3/Testing | Found Prototype Launcher 10715 | -3/Testing | Identified Z-bomb Delivery System 10737 | -3/Testing | Found Prototype Processor 10737 | -3/Testing | Identified Exp. Target Analyzer 10746 | -3/Testing | Found Prototype Energy Gun 10747 | -3/Testing | Identified Tachyon Dispersion Ray 10816 | -3/Testing | Build established: Mutant 10852 | -3/Testing | Found Prototype Energy Gun 10872 | -3/Testing | Found Prototype Energy Cannon 10879 | -3/Testing | Entered Research 10879 | -2/Research | Evolved 2 slots: Propulsion x1, Utility x1 10879 | -2/Research | Identified Warp Gun 10880 | -2/Research | Identified exit to Access 10885 | -2/Research | X0-1V1 activates XOMVISION 10900 | -2/Research | X0-1V1 enhanced Transport squad support 10909 | -2/Research | System corruption reached 10% 10926 | -2/Research | X0-1V1 redirected Transport squads to designated parking area 10933 | -2/Research | X0-1V1 sent you into danger 10937 | -2/Research | Weapon slot count temporarily expanded by X0-1V1 (+2) 10948 | -2/Research | X0-1V1 sent allied Quarantine Guard (x1) 10971 | -2/Research | Identified Cld. Nova Cannon 10984 | -2/Research | X0-1V1 released a cloud of subatomizers 11021 | -2/Research | Spotted B-90 Cyclops 11051 | -2/Research | X0-1V1 turns hostiles against one another 11084 | -2/Research | Spotted B-90 Cyclops 11115 | -2/Research | X0-1V1 activates XOMVISION 11137 | -2/Research | Spotted B-90 Cyclops 11160 | -2/Research | Spotted B-90 Cyclops 11161 | -2/Research | Discovered new exit (range 24) 11163 | -2/Research | Identified exit to Quarantine 11163 | -2/Research | X0-1V1 revealed exit location to -2/Quarantine 11171 | -2/Research | Lost 4 parts (2n1u1w) 11174 | -2/Research | Entered Quarantine 11225 | -2/Quarantine | Found Alien Artifact 11343 | -2/Quarantine | Found Alien Artifact 11344 | -2/Quarantine | Identified Subatomic Replicator 11351 | -2/Quarantine | X0-1V1 sent allied D-83 Annihilator (x4) 11352 | -2/Quarantine | Core integrity fell below 50% 11383 | -2/Quarantine | Lost 5 parts (3n1u1w) 11445 | -2/Quarantine | Garrison activated, responded to threat 11605 | -2/Quarantine | Identified Core Reset Matrix 11605 | -2/Quarantine | Used Core Reset Matrix 11609 | -2/Quarantine | Detected hypermatrix surge 11609 | -2/Quarantine | Sensed 7 artifacts in vicinity 11622 | -2/Quarantine | High security lockdown imminent 11653 | -2/Quarantine | Discovered exit to Access (range 13) 11661 | -2/Quarantine | Found Sigix Broadsword 11684 | -2/Quarantine | Spotted Fortress 11702 | -2/Quarantine | High security lockdown engaged 11705 | -2/Quarantine | Discovered new exit (range 6) 11705 | -2/Quarantine | Discovered new exit (range 6) 11708 | -2/Quarantine | Entered Protoforge 11709 | -2/Protoforge | Sensed 2 artifacts in vicinity 11736 | -2/Protoforge | Spotted B-90 Cyclops 11748 | -2/Protoforge | Core integrity restored by X0-1V1 (+396) 11753 | -2/Protoforge | Superfortress began startup sequence 11787 | -2/Protoforge | Spotted EXE-6 11787 | -2/Protoforge | Spotted EXE-6 11790 | -2/Protoforge | Destroyed EXE-6 11792 | -2/Protoforge | Destroyed EXE-6 11797 | -2/Protoforge | Spotted Decapitator 11798 | -2/Protoforge | X0-1V1 activates XOMVISION 11799 | -2/Protoforge | Spotted Decapitator 11808 | -2/Protoforge | UFD initiated attack on Protoforge (Readiness: Low) 11808 | -2/Protoforge | Loaded intel: 3 recycling unit locations 11831 | -2/Protoforge | Spotted EXE-6 11841 | -2/Protoforge | Found Prototype Ballistic Gun 11843 | -2/Protoforge | Found Prototype Processor 11843 | -2/Protoforge | Identified Exp. Armor Integrity Analyzer 11845 | -2/Protoforge | Optimus greeted in Protoforge 11845 | -2/Protoforge | Found Prototype Ballistic Gun 11845 | -2/Protoforge | Identified Cep. XC Strikerail (x2) 11858 | -2/Protoforge | Found Hvy. Scimitar of Distortion 11886 | -2/Protoforge | X0-1V1 sent someone to keep an eye on you 11896 | -2/Protoforge | X0-1V1 revealed exit location to -1/Access 11945 | -2/Protoforge | Lost 5 allies 11994 | -2/Protoforge | X0-1V1 mutated your Utility slot to Propulsion slot 12068 | -2/Protoforge | Lost 3 allies 12104 | -2/Protoforge | Spotted Striker 12126 | -2/Protoforge | Spotted Striker 12134 | -2/Protoforge | Spotted Executioner 12145 | -2/Protoforge | Lost 9 parts (1p5n2u1w) 12162 | -2/Protoforge | Spotted Executioner 12163 | -2/Protoforge | Spotted Executioner 12163 | -2/Protoforge | Spotted Executioner 12179 | -2/Protoforge | Found Prototype Processor 12179 | -2/Protoforge | Identified Exp. Targeting Computer 12193 | -2/Protoforge | Lost 7 allies 12220 | -2/Protoforge | P-80 Master assimilated allied 02F04-D 12223 | -2/Protoforge | Spotted Executioner 12223 | -2/Protoforge | Spotted Striker 12253 | -2/Protoforge | Lost 3 allies 12279 | -2/Protoforge | UFD reported confirmed Drillbomb installation 12355 | -2/Protoforge | Core integrity restored by X0-1V1 (+378) 12376 | -2/Protoforge | Lost 3 allies 12446 | -2/Protoforge | UFD reported confirmed Drillbomb installation 12598 | -2/Protoforge | Build established: Scavenger-Gunner 12683 | -2/Protoforge | Core integrity restored by X0-1V1 (+378) 12997 | -2/Protoforge | Build established: Scavenger-Tank 13046 | -2/Protoforge | X0-1V1 vaporized surrounding terrain (radius 15) 13148 | -2/Protoforge | X0-1V1 activates XOMVISION 13240 | -2/Protoforge | UFD reported confirmed Drillbomb installation 13264 | -2/Protoforge | Lost 3 allies 13352 | -2/Protoforge | X0-1V1 activates XOMVISION 13471 | -2/Protoforge | UFD reported confirmed Drillbomb installation 13540 | -2/Protoforge | UFD reported confirmed Drillbomb installation 13601 | -2/Protoforge | Build established: Scavenger-Mutant 13971 | -2/Protoforge | X0-1V1 sent you to a vault 13980 | -2/Protoforge | Found Unknown Launcher 13980 | -2/Protoforge | Identified Fusion Bomb Launcher 13991 | -2/Protoforge | Found Exp. Armor Integrity Analyzer 13997 | -2/Protoforge | Found Unknown Special Melee Weapon 13998 | -2/Protoforge | Identified Chaos Jack 14007 | -2/Protoforge | Found Prototype Device 14007 | -2/Protoforge | Identified Chronowheel 14007 | -2/Protoforge | Activated Chronowheel 14007 | -2/Protoforge | Spacetime reconverged on an earlier point 14008 | -2/Protoforge | Found Exp. Shield Generator 14016 | -2/Protoforge | Found Prototype Protection 14016 | -2/Protoforge | Identified Centrium Heavy Armor Plating 14059 | -2/Protoforge | Spotted Hotshot 14059 | -2/Protoforge | Spotted Hotshot 14059 | -2/Protoforge | Spotted Hotshot 14062 | -2/Protoforge | Destroyed Hotshot 14062 | -2/Protoforge | Spotted Hotshot 14062 | -2/Protoforge | Spotted Hotshot 14064 | -2/Protoforge | Spotted Hotshot 14064 | -2/Protoforge | Destroyed Hotshot 14067 | -2/Protoforge | Destroyed Hotshot 14067 | -2/Protoforge | Destroyed Hotshot 14068 | -2/Protoforge | Destroyed Hotshot 14071 | -2/Protoforge | Destroyed Hotshot 14090 | -2/Protoforge | Spotted Executioner 14090 | -2/Protoforge | Spotted Executioner 14092 | -2/Protoforge | Destroyed Executioner 14097 | -2/Protoforge | Destroyed Executioner 14131 | -2/Protoforge | Destroyed 9 combat bots 14167 | -2/Protoforge | Spotted Striker 14171 | -2/Protoforge | Spotted Striker 14199 | -2/Protoforge | Weapon slot count temporarily expanded by X0-1V1 (+1) 14199 | -2/Protoforge | Destroyed Executioner 14199 | -2/Protoforge | Spotted Executioner 14206 | -2/Protoforge | Destroyed Executioner 14228 | -2/Protoforge | Destroyed 11 combat bots 14234 | -2/Protoforge | Lost 4 parts (4u) 14243 | -2/Protoforge | Spotted Executioner 14252 | -2/Protoforge | Destroyed Executioner 14258 | -2/Protoforge | Destroyed Executioner 14275 | -2/Protoforge | Found Prototype Processor 14282 | -2/Protoforge | Identified Exp. Core Analyzer 14287 | -2/Protoforge | Found Exp. Core Analyzer 14304 | -2/Protoforge | Spotted Executioner 14306 | -2/Protoforge | Destroyed Executioner 14307 | -2/Protoforge | Spotted Executioner 14307 | -2/Protoforge | P-80 Master assimilated allied Lugger 842 14311 | -2/Protoforge | Spotted Executioner 14315 | -2/Protoforge | Spotted Executioner 14327 | -2/Protoforge | Destroyed Executioner 14331 | -2/Protoforge | Destroyed Executioner 14343 | -2/Protoforge | Spotted Striker 14346 | -2/Protoforge | Spotted Executioner 14347 | -2/Protoforge | Spotted Executioner 14350 | -2/Protoforge | Spotted Striker 14354 | -2/Protoforge | Destroyed 13 combat bots 14364 | -2/Protoforge | Spotted Executioner 14386 | -2/Protoforge | Lost 4 allies 14397 | -2/Protoforge | Spotted Hotshot 14397 | -2/Protoforge | Spotted Hotshot 14408 | -2/Protoforge | Spotted Hotshot 14408 | -2/Protoforge | Destroyed Striker 14408 | -2/Protoforge | Destroyed Executioner 14411 | -2/Protoforge | Core integrity fell below 20% 14434 | -2/Protoforge | Spotted Striker 14436 | -2/Protoforge | Found Prototype Slashing Weapon 14439 | -2/Protoforge | Identified Exp. Terror Saw 14442 | -2/Protoforge | Lost 18 parts (3p8n3u4w) 14442 | -2/Protoforge | Spotted Executioner 14446 | -2/Protoforge | Destroyed by Superfortress with Cooled Nova Cannon Last Messages --------------- 14425_ Acquired Prototype Flight Unit. 14430_ Identified Exp. Surge Thruster. 14435_ System corrupted: IFF burst signal emitted. 14435_ X0-1V1 is amused. 14436_ Acquired Prototype Slashing Weapon. 14439_ Sfc. Transmogrifier converts Exp. Surge Thruster into Exp. Biometal Heavy Treads. 14439_ Identified Exp. Terror Saw. 14441_ Discarded Exp. Biometal Heavy Treads. 14442_ Slug penetrates Wall. 14444_ Machine disabled. 14445_ Slug penetrates H-88 Terminator. 14445_ Slug penetrates Executioner. 14445_ Slug penetrates Wall. 14445_ Penetrated by Slug. 14445_ Slug penetrates Wall. 14446_ Penetrated by Slug. 14446_ Slug penetrates Reinforced Barrier. 14446_ X0-1V1 cackles wildly! Map ----- +----------------------------------------------------+ | ?????????????????????????????????????????????????? | | ?????????????????????????????????????????????????? | | ?????????????????????????????????????????????????? | | ?????????????????????????????????????????????????? | | ?????????????????????????????????????????????????? | | ?????????????????????????????????????????????????? | | ?????????????????????????????????????????????????? | | ?????????????????????????????????????????????????? | | ?????????????????????????????????????????????????? | | ?????????????????????????????????????????????????? | | ?????????????????????????????????????????????????? | | ?????????????????????????????????????????????????? | | ?????????????????????????????????????????????????? | | ?????????????????????????????????????????????????? | | ?????????????????????????????????????????????????? | | ?????????????????????????????????????????#???????? | | ???????????????????????????????????????? #???????? | | ??????????????????????????????????????? #???????? | | ???????????????????????############### #???????? | | ???????????????????????? #???????? | | ???????????????????????? ?????????? | | ???????????????????????? ????????????? | | ????????????????????????# #??????????????? | | ????????????????????????# #??????????????? | | ????????????????????????# #??????????????? | | ????????????????????????#@ #??????????????? | | ????????????????????????# #??????????????? | | ????????????????????????## ##??????????????? | | ????????????????######## " #???????????????? | | ????????????????#########" ######??????????? | | ????????????????##"""""""" """""""?????????? | | ######?########?## """ """" ????????? | | ######?########?## "" h "" #???????? | | """"#####""""##### T" E h " #???????? | | !"#### #"##" #???????? | | h ! % ????? | | FFF !% ??? | | FFF % ??? | | FFF %???? | | % %% ???? | | ????? | | [[[##### ###"" ;"""????? | | """"#####""""#####""""""""""""""""""""" "## #????? | | ######?########?##"""""""""""""""""""""""#???????? | | ######?########?##"""""""""""""""""""""??#???????? | | ????????????????##################???????????????? | | ????????????????###############??????????????????? | | ?????????????????????????????????????????????????? | | ?????????????????????????????????????????????????? | | ?????????????????????????????????????????????????# | +----------------------------------------------------+ Best States ------------- Heat Dissipation 185 Energy Generation 73 Energy Capacity 1910 Matter Stores 1000 Matter Capacity 1300 Sight Range 25 Robot Scan Range 20 Terrain Scan Density 10 ECM Strength 1 Jamming Range 16 Cloak Strength 6 Armor Coverage 1825 Resistance: KI 43 Resistance: TH 48 Resistance: EM 90 Power Shielding 66 Weapon Shielding 90 Weapon Cycling 20 Melee Speed Boost 20 Phase Shifting 15 Evasion (%) 80 Targeting Accuracy 12 Melee Accuracy 6 Launcher Accuracy 30 Target Analysis 10 Core Analysis 12 Armor Integrity Analysis 50 Recoil Reduction 6 Matter Filtering 50 Particle Charging 40 Offensive Hacking 24 Defensive Hacking 10 Authchip Count 4 Item Schematics ----------------- None Robot Schematics ------------------ None Fabricated ------------ Antimatter Reactor | x2 | -4/Factory | Preloaded Repaired ---------- Nothing Studied --------- None Alien Tech Used ----------------- Subatomic Replicator Core Reset Matrix Sigix Broadsword Achievements -------------- None Challenges ------------ None Game ------ Seed GatlingCoolingWings Manual? 0 Play Time 02:11:13 Cumulative 977.2 hours Start 2026.07.07 @ 19:08:37 End 2026.07.08 @ 01:07:28 Sessions 13 Manual Loads 0 Difficulty Rogue Special Mode None Game No. 1116 Rogue 1116 Adventurer 0 Explorer 0 Win Type - Total 44 Types 21/1/9/3/2/1/3/2/1/1 Lore% 98 Gallery% 96 Achievement% 93 Wizard Run 0 Options --------- Layout 2 ASCII 0 Keyboard 0 Movement Mouse Keybinds 0 Fullscreen 2 Font 24/X11 Map View 50x44 Zoom Use 0% Tactical HUD 1 Map Filters NONE Filters NONE Steam 1 RUN: d259e193-0be5-4a14-b353-8e052016b414